fUST/lending_fUST_20250509
["ID","MTS","AMOUNT","RATE_DAILY","PERIOD"]
[360306567,1746735288087,-150.0,0.00037125,31]
[360306568,1746735288111,-269.0,0.00037125,31]
[360306569,1746735288134,-538.0,0.00037125,31]
[360306570,1746735288161,-1077.0,0.00037125,31]
[360306571,1746735288185,-1360.0,0.00037125,31]
[360306572,1746735288209,-2096.0,0.00037125,31]
[360306573,1746735288233,-2153.0,0.00037125,31]
[360306574,1746735288257,-3327.0,0.00037125,31]
[360306575,1746735288282,-693731.04617316,0.00037125,30]
[360306576,1746735288314,-217.999999,0.00037125,120]
[360306577,1746735288341,-579.32,0.00037125,120]
[360306578,1746735288367,-579.32,0.00037125,120]
[360306579,1746735288394,-579.32,0.00037125,120]
[360306580,1746735288418,-579.32,0.00037125,120]
[360306581,1746735288443,-579.32,0.00037125,120]
[360306582,1746735288469,-579.32,0.00037125,120]
[360306583,1746735288494,-579.32,0.00037125,120]
[360306584,1746735288519,-579.32,0.00037125,120]
[360306585,1746735288684,-579.32,0.00037125,120]
[360306586,1746735288711,-579.32,0.00037125,120]
[360306587,1746735288735,-579.32,0.00037125,120]
[360306588,1746735288760,-579.32,0.00037125,120]
[360306589,1746735288785,-579.32,0.00037125,120]
[360306590,1746735288809,-579.32,0.00037125,120]
[360306591,1746735288833,-579.32,0.00037125,120]
[360306592,1746735288858,-579.32,0.00037125,120]
[360306593,1746735288881,-579.32,0.00037125,120]
[360306594,1746735288906,-579.32,0.00037125,120]
[360306595,1746735288930,-579.32,0.00037125,120]
[360306596,1746735288955,-579.32,0.00037125,120]
[360306597,1746735288979,-579.32,0.00037125,120]
[360306598,1746735289003,-579.32,0.00037125,120]
[360306599,1746735289027,-579.32,0.00037125,120]
[360306600,1746735289052,-579.35920164,0.00037125,120]
[360306601,1746735289076,-4231.21573702,0.00037125,120]
[360306602,1746735289100,-4018.31286528,0.00037125,30]
[360306603,1746735289124,-150.0,0.00037125,31]
[360306604,1746735289149,-150.0,0.00037125,31]
[360306605,1746735289173,-210.0,0.00037125,31]
[360306606,1746735289199,-211.0,0.00037125,31]
[360306607,1746735289226,-334.0,0.00037125,31]
[360306608,1746735289251,-98169.10922198,0.00037125,30]
[360306609,1746735289277,-500.0,0.00037125,120]
[360306610,1746735289303,-593.04725543,0.00037125,120]
[360306611,1746735289329,-400.0,0.00037125,120]
[360306612,1746735289353,-150.0,0.00037125,31]
[360306613,1746735289377,-184.0,0.00037125,31]
[360306614,1746735289401,-368.0,0.00037125,31]
[360306615,1746735289424,-737.0,0.00037125,31]
[360306616,1746735289447,-930.0,0.00037125,31]
[360306617,1746735289471,-1433.0,0.00037125,31]
[360306618,1746735289495,-1473.0,0.00037125,31]
[360306619,1746735289518,-2275.0,0.00037125,31]
[360306620,1746735289543,-100000.0,0.00037125,30]
[360306621,1746735289568,-100000.0,0.00037125,30]
[360306622,1746735289592,-100000.0,0.00037125,30]
[360306623,1746735289615,-100000.0,0.00037125,30]
[360306624,1746735289639,-100000.0,0.00037125,30]
[360306625,1746735289662,-100000.0,0.00037125,30]
[360306626,1746735289684,-100000.0,0.00037125,30]
[360306627,1746735289707,-9358.18143691,0.00037125,30]
[360306628,1746735293707,-90641.81856309,0.00037125,30]
[360306629,1746735293731,-100000.0,0.00037125,30]
[360306630,1746735293756,-100000.0,0.00037125,30]
[360306631,1746735293781,-100000.0,0.00037125,30]
[360306632,1746735293807,-100000.0,0.00037125,30]
[360306633,1746735293831,-1012.0549523,0.00037125,35]
[360306634,1746735293855,-590.77326841,0.00037125,120]
[360306635,1746735293879,-1886.68468337,0.00037125,120]
[360306636,1746735293902,-624.15168856,0.00037125,31]
[360306637,1746735293926,-2236.68180572,0.00037125,30]
[360306638,1746735293948,-775.8428624,0.00037125,120]
[360306639,1746735293972,-7191.06863281,0.00037125,60]
[360306640,1746735293996,-2068.61820491,0.00037125,120]
[360306641,1746735294020,-646.0,0.00037125,30]
[360306642,1746735294046,-1766.0,0.00037125,120]
[360306643,1746735294073,-2390.62282498,0.00037125,120]
[360306644,1746735294097,-150686.3607163,0.00037125,32]
[360306645,1746735294121,-197500.0,0.00037125,30]
[360306646,1746735294147,-1131.03560529,0.00037125,120]
[360306647,1746735294172,-10051.68921462,0.00037125,120]
[360306648,1746735294196,-176.91867908,0.00037125,30]
[360306649,1746735294222,-500.0,0.00037125,120]
[360306650,1746735294247,-500.0,0.00037125,120]
[360306651,1746735294272,-500.0,0.00037125,120]
[360306652,1746735294299,-500.0,0.00037125,120]
[360306653,1746735294324,-500.0,0.00037125,120]
[360306654,1746735294350,-500.0,0.00037125,120]
[360306655,1746735294375,-500.0,0.00037125,120]
[360306656,1746735294401,-279.12525896,0.00037125,120]
[360306657,1746735294425,-3499.999999,0.00037125,90]
[360306658,1746735294449,-298.73064441,0.00037125,31]
[360306659,1746735294474,-2309.9976354,0.00037125,120]
[360306660,1746735294497,-150.0,0.00037125,31]
[360306661,1746735294521,-150.0,0.00037125,31]
[360306662,1746735294675,-70000.0,0.00037125,30]
[360306663,1746735294699,-45362.0,0.00037125,60]
[360306664,1746735294724,-930.0,0.00037125,30]
[360306665,1746735294749,-204.0,0.00037125,120]
[360306666,1746735294774,-272.0,0.00037125,120]
[360306667,1746735294798,-161.54435592,0.00037125,120]
[360306668,1746735294822,-5851.8275964,0.00037125,60]
[360306669,1746735294845,-1606.65656171,0.00037125,60]
[360306670,1746735294868,-322.42023294,0.00037125,30]
[360306671,1746735294892,-2115.72313508,0.00037125,120]
[360306672,1746735294916,-242.49905185,0.00037125,120]
[360306673,1746735294939,-828.08197965,0.00037125,120]
[360306674,1746735294964,-5000.0,0.00037125,80]
[360306675,1746735294988,-160.0,0.00037125,30]
[360306676,1746735295012,-5867.8880896,0.00037125,120]
[360306677,1746735295036,-9656.7144157,0.00037125,35]
[360306678,1746735295062,-3263.0,0.00037125,120]
[360306679,1746735295088,-481.55350171,0.00037125,120]
[360306680,1746735295113,-1762448.01394775,0.00037125,30]
[360306681,1746735295138,-5000.0,0.00037125,120]
[360306682,1746735295163,-160.0,0.00037125,30]
[360306683,1746735295188,-160.0,0.00037125,30]
[360306684,1746735295212,-160.0,0.00037125,30]
[360306685,1746735295239,-160.0,0.00037125,30]
[360306686,1746735295262,-160.0,0.00037125,30]
[360306687,1746735295286,-160.0,0.00037125,30]
[360306688,1746735295313,-160.0,0.00037125,30]
[360306689,1746735295335,-3463.17706632,0.00037125,120]
[360306690,1746735295360,-500.0,0.00037125,120]
[360306691,1746735295385,-399.14,0.00037125,120]
[360306692,1746735295409,-500.0,0.00037125,120]
[360306693,1746735295433,-500.0,0.00037125,120]
[360306694,1746735295458,-500.0,0.00037125,120]
[360306695,1746735295483,-500.0,0.00037125,120]
[360306696,1746735295508,-500.0,0.00037125,120]
[360306697,1746735295533,-500.0,0.00037125,120]
[360306698,1746735295558,-500.0,0.00037125,120]
[360306699,1746735295583,-500.0,0.00037125,120]
[360306700,1746735295608,-500.0,0.00037125,120]
[360306701,1746735295633,-500.0,0.00037125,120]
[360306702,1746735295658,-500.0,0.00037125,120]
[360306703,1746735295683,-500.0,0.00037125,120]
[360306704,1746735295708,-500.0,0.00037125,120]
[360306705,1746735295732,-635.63131893,0.00037125,120]
[360306706,1746735295756,-25054.85788679,0.00037125,30]
[360306707,1746735295780,-160989.09562004,0.00037125,60]
[360306708,1746735299428,-39531.41172172,0.00037125,60]
[360306709,1746735299454,-184.1,0.00037125,30]
[360306710,1746735299478,-308.41148422,0.00037125,30]
[360306711,1746735299502,-385.27500902,0.00037125,120]
[360306712,1746735299528,-21242.3199,0.00037125,120]
[360306713,1746735299553,-65170.42284368,0.00037125,120]
[360306714,1746735299578,-10105.9116585,0.00037125,30]
[360306715,1746735299603,-12076.454643,0.00037125,36]
[360306716,1746735299629,-235.57032847,0.00037125,120]
[360306717,1746735299652,-461.43287156,0.00037125,120]
[360306718,1746735299676,-10025.79659912,0.00037125,45]
[360306719,1746735299700,-1558.02284033,0.00037125,120]
[360306720,1746735299724,-53242.13869743,0.00037125,120]
[360306721,1746735299748,-1261.70547975,0.00037125,30]
[360306722,1746735299772,-1251.0,0.00037125,40]
[360306723,1746735299797,-500.0,0.00037125,30]
[360306724,1746735299820,-500.0,0.00037125,30]
[360306725,1746735299844,-4496.23488,0.00037125,120]
[360306726,1746735299869,-18398.552172,0.00037125,30]
[360306727,1746735305042,155.0,0.00037125,30]
[360306728,1746735305083,151.0,0.00037125,30]
[360306729,1746735305322,151.0,0.00037125,30]
[360306730,1746735305701,156.587,0.00037125,30]
[360306731,1746735306077,151.0,0.00037125,30]
[360306732,1746735306323,162.380719,0.00037125,30]
[360306733,1746735306620,151.0,0.00037125,30]
[360306734,1746735306923,168.3888056,0.00037125,30]
[360306735,1746735307261,151.0,0.00037125,30]
[360306737,1746735307536,174.61919141,0.00037125,30]
[360306738,1746735307872,151.0,0.00037125,30]
[360306739,1746735307929,200.0,0.00037125,30]
[360306740,1746735308148,181.08010149,0.00037125,30]
[360306741,1746735308511,151.0,0.00037125,30]
[360306742,1746735308773,187.78006525,0.00037125,30]
[360306841,1746736238574,-424.8774851,0.00011006,2]
[360306843,1746736238583,-347.07455882,0.00011006,2]
[360306844,1746736238593,-173.60882906,0.00011006,2]
[360306846,1746736238603,-693.29942918,0.00011006,2]
[360306848,1746736238612,-693.29942918,0.00011006,2]
[360306850,1746736238623,-693.29942918,0.00011006,2]
[360306851,1746736238632,-693.29942918,0.00011006,2]
[360306853,1746736238641,-693.29942918,0.00011006,2]
[360306854,1746736238651,-693.29942918,0.00011006,2]
[360306855,1746736238661,-693.29942918,0.00011006,2]
[360306856,1746736238670,-693.29942918,0.00011006,2]
[360306857,1746736238679,-693.29942918,0.00011006,2]
[360306858,1746736238689,-693.29942918,0.00011006,2]
[360306859,1746736238698,-693.29942918,0.00011006,2]
[360306860,1746736238708,-693.29942918,0.00011006,2]
[360306861,1746736238717,-693.29942918,0.00011006,2]
[360306862,1746736238727,-617.12835888,0.00011006,2]
[360307001,1746736243564,-76.1710703,0.00011006,2]
[360307002,1746736243575,-430.5616694,0.00011006,2]
[360307121,1746737438723,-300.0,0.00010898,2]
[360307123,1746737438733,-578.62109527,0.00010898,2]
[360307126,1746737438746,-621.37890473,0.00010898,2]
[360307129,1746737438755,-300.0,0.00010898,2]
[360307131,1746737438766,-408.00056701,0.00010899,2]
[360307134,1746737438775,-464.40774229,0.00010899,2]
[360307137,1746737438785,-653.6578834,0.00010899,2]
[360307139,1746737438796,-352.02282915,0.00010899,2]
[360307141,1746737438805,-426.58207342,0.00010899,2]
[360307144,1746737438818,-227.07580998,0.00010899,2]
[360307146,1746737438830,-521.70747002,0.00010899,2]
[360307148,1746737438842,-131.95041338,0.00010899,2]
[360307150,1746737438852,-653.6578834,0.00010899,2]
[360307152,1746737438862,-653.6578834,0.00010899,2]
[360307154,1746737438872,-653.6578834,0.00010899,2]
[360307156,1746737438884,-653.6578834,0.00010899,2]
[360307158,1746737438894,-653.6578834,0.00010899,2]
[360307160,1746737438904,-653.6578834,0.00010899,2]
[360307162,1746737438914,-653.6578834,0.00010899,2]
[360307164,1746737438924,-653.6578834,0.00010899,2]
[360307166,1746737438934,-8.65444872,0.00010899,2]
[360307175,1746737439326,-645.00343468,0.00010899,2]
[360307176,1746737439337,-574.79656532,0.00010899,2]
[360307354,1746737443850,-78.86131808,0.00010899,2]
[360307356,1746737443861,-653.6578834,0.00010899,2]
[360307358,1746737443872,-653.6578834,0.00010899,2]
[360307360,1746737443882,-653.6578834,0.00010899,2]
[360307362,1746737443896,-206.53397795,0.00010899,2]
[360307365,1746737443912,-447.12390545,0.00010899,2]
[360307367,1746737443922,-653.6578834,0.00010899,2]
[360307369,1746737443932,-653.6578834,0.00010899,2]
[360307371,1746737443941,-653.6578834,0.00010899,2]
[360307372,1746737443951,-653.6578834,0.00010899,2]
[360307374,1746737443961,-653.6578834,0.00010899,2]
[360307377,1746737443971,-653.6578834,0.00010899,2]
[360307379,1746737443981,-653.6578834,0.00010899,2]
[360307381,1746737443991,-653.6578834,0.00010899,2]
[360307382,1746737444000,-653.6578834,0.00010899,2]
[360307384,1746737444010,-653.6578834,0.00010899,2]
[360307386,1746737444020,-653.6578834,0.00010899,2]
[360307389,1746737444033,-653.6578834,0.00010899,2]
[360307390,1746737444043,-653.6578834,0.00010899,2]
[360307393,1746737444054,-245.11066724,0.00010899,2]
[360307395,1746737444068,-408.54721616,0.00010899,2]
[360307397,1746737444080,-653.6578834,0.00010899,2]
[360307399,1746737444090,-653.6578834,0.00010899,2]
[360307401,1746737444101,-653.6578834,0.00010899,2]
[360307403,1746737444113,-653.6578834,0.00010899,2]
[360307405,1746737444124,-653.6578834,0.00010899,2]
[360307407,1746737444136,-653.6578834,0.00010899,2]
[360307409,1746737444150,-653.6578834,0.00010899,2]
[360307411,1746737444160,-653.6578834,0.00010899,2]
[360307413,1746737444172,-653.6578834,0.00010899,2]
[360307415,1746737444182,-653.6578834,0.00010899,2]
[360307418,1746737444193,-653.6578834,0.00010899,2]
[360307421,1746737444204,-653.6578834,0.00010899,2]
[360307424,1746737444215,-653.6578834,0.00010899,2]
[360307427,1746737444227,-653.6578834,0.00010899,2]
[360307429,1746737444240,-653.6578834,0.00010899,2]
[360307431,1746737444252,-653.6578834,0.00010899,2]
[360307433,1746737444263,-643.01694112,0.00010899,2]
[360307435,1746737444274,-643.01694112,0.00010899,2]
[360307437,1746737444285,-643.01694112,0.00010899,2]
[360307440,1746737444298,-643.01694112,0.00010899,2]
[360307442,1746737444315,-643.01694112,0.00010899,2]
[360307444,1746737444329,-643.01694112,0.00010899,2]
[360307446,1746737444340,-643.01694112,0.00010899,2]
[360307448,1746737444351,-643.01694112,0.00010899,2]
[360307450,1746737444362,-643.01694112,0.00010899,2]
[360307452,1746737444373,-643.01694112,0.00010899,2]
[360307454,1746737444383,-643.01694112,0.00010899,2]
[360307456,1746737444396,-643.01694112,0.00010899,2]
[360307458,1746737444407,-643.01694112,0.00010899,2]
[360307460,1746737444417,-643.01694112,0.00010899,2]
[360307462,1746737444428,-643.01694112,0.00010899,2]
[360307464,1746737444438,-643.01694112,0.00010899,2]
[360307466,1746737444448,-643.01694112,0.00010899,2]
[360307468,1746737444458,-643.01694112,0.00010899,2]
[360307470,1746737444468,-643.01694112,0.00010899,2]
[360307472,1746737444478,-643.01694112,0.00010899,2]
[360307474,1746737444488,-643.01694112,0.00010899,2]
[360307476,1746737444498,-643.01694112,0.00010899,2]
[360307478,1746737444507,-643.01694112,0.00010899,2]
[360307480,1746737444519,-643.01694112,0.00010899,2]
[360307482,1746737444528,-643.01694112,0.00010899,2]
[360307484,1746737444538,-643.01694112,0.00010899,2]
[360307486,1746737444549,-643.01694112,0.00010899,2]
[360307488,1746737444559,-643.01694112,0.00010899,2]
[360307489,1746737444568,-643.01694112,0.00010899,2]
[360307490,1746737444577,-643.01694112,0.00010899,2]
[360307491,1746737444587,-631.88780174,0.00010899,2]
[360307492,1746737444596,-631.88780174,0.00010899,2]
[360307493,1746737444605,-631.88780174,0.00010899,2]
[360307494,1746737444614,-631.88780174,0.00010899,2]
[360307495,1746737444623,-631.88780174,0.00010899,2]
[360307496,1746737444633,-631.88780174,0.00010899,2]
[360307497,1746737444645,-631.88780174,0.00010899,2]
[360307498,1746737444654,-631.88780174,0.00010899,2]
[360307499,1746737444663,-631.88780174,0.00010899,2]
[360307500,1746737444672,-631.88780174,0.00010899,2]
[360307501,1746737444681,-631.88780174,0.00010899,2]
[360307502,1746737444691,-631.88780174,0.00010899,2]
[360307503,1746737444700,-631.88780174,0.00010899,2]
[360307504,1746737444710,-398.92805815,0.00010899,2]
[360307505,1746737444720,-13475.18625498,0.00010904,2]
[360307506,1746737444732,-708.104,0.00010904,2]
[360307677,1746737497068,1571.6264076,9.948e-05,2]
[360307686,1746737845021,250.0,9.884e-05,2]
[360307688,1746737897485,3110.3035676,9.837e-05,2]
[360307696,1746738158566,24900.0,9.728e-05,2]
[360307701,1746738322158,5428.9413122,9.703e-05,2]
[360307775,1746738636479,-1205.10854222,0.00010417,2]
[360307776,1746738636489,-274.47783813,0.00010466,2]
[360307777,1746738636499,-1200.0,0.00010569,2]
[360307778,1746738636509,-300.0,0.00010569,2]
[360307779,1746738636521,-300.0,0.0001057,2]
[360307780,1746738636533,-300.0,0.0001057,2]
[360307781,1746738636543,-300.0,0.0001057,2]
[360307782,1746738636553,-300.0,0.0001057,2]
[360307783,1746738636563,-8096.04588717,0.00010571,2]
[360307784,1746738636572,-8096.04588717,0.00010588,2]
[360307785,1746738636581,-1605.48028086,0.000106,2]
[360307786,1746738636591,-2565.49266131,0.00010606,2]
[360307787,1746738636604,-5530.55322586,0.00010606,2]
[360307788,1746738636613,-8096.04588717,0.00010623,2]
[360307789,1746738636622,-8096.04588717,0.0001064,2]
[360307790,1746738636631,-500.0,0.0001067,2]
[360307791,1746738636641,-2489.55757197,0.0001067,2]
[360307793,1746738636651,-500.0,0.0001067,2]
[360307794,1746738636660,-278.75197528,0.0001067,2]
[360307795,1746738636669,-409.9273819,0.0001067,2]
[360307797,1746738636681,-500.0,0.0001067,2]
[360307799,1746738636691,-2489.55757197,0.0001067,2]
[360307801,1746738636701,-500.0,0.0001067,2]
[360307803,1746738636711,-480.0,0.0001067,2]
[360307805,1746738636722,-2489.55757197,0.0001067,2]
[360307807,1746738636732,-500.0,0.0001067,2]
[360307809,1746738636742,-500.0,0.0001067,2]
[360307811,1746738636751,-500.0,0.0001067,2]
[360307813,1746738636761,-500.0,0.0001067,2]
[360307815,1746738636772,-2489.55757197,0.0001067,2]
[360307817,1746738636783,-2489.55757197,0.0001067,2]
[360307819,1746738636793,-500.0,0.0001067,2]
[360307820,1746738636804,-2489.55757197,0.0001067,2]
[360307821,1746738636814,-500.0,0.0001067,2]
[360307822,1746738636824,-500.0,0.0001067,2]
[360307823,1746738636833,-2489.55757197,0.0001067,2]
[360307824,1746738636843,-500.0,0.0001067,2]
[360307825,1746738636852,-500.0,0.0001067,2]
[360307826,1746738636862,-2489.55757197,0.0001067,2]
[360307827,1746738636872,-2489.55757197,0.0001067,2]
[360307828,1746738636881,-252.92580999,0.0001067,2]
[360307829,1746738636892,-2489.55757197,0.0001067,2]
[360307830,1746738636902,-500.0,0.0001067,2]
[360307831,1746738636912,-2489.55757197,0.0001067,2]
[360307832,1746738636926,-2489.55757197,0.0001067,2]
[360307833,1746738636935,-500.0,0.0001067,2]
[360307834,1746738636945,-2489.55757197,0.0001067,2]
[360307835,1746738636954,-2489.55757197,0.0001067,2]
[360307836,1746738636964,-2489.55757197,0.0001067,2]
[360307837,1746738636974,-2489.55757197,0.0001067,2]
[360307838,1746738636984,-938.76766432,0.0001067,2]
[360307839,1746738636998,-1550.78990765,0.0001067,2]
[360307840,1746738637008,-2489.55757197,0.0001067,2]
[360307841,1746738637019,-2489.55757197,0.0001067,2]
[360307842,1746738637029,-2489.55757197,0.0001067,2]
[360307843,1746738637041,-2489.55757197,0.0001067,2]
[360307844,1746738637052,-2489.55757197,0.0001067,2]
[360307845,1746738637063,-2489.55757197,0.0001067,2]
[360307846,1746738637074,-2489.55757197,0.0001067,2]
[360307847,1746738637084,-2489.55757197,0.0001067,2]
[360307848,1746738637095,-2489.55757197,0.0001067,2]
[360307849,1746738637106,-2489.55757197,0.0001067,2]
[360307850,1746738637117,-2489.55757197,0.0001067,2]
[360307851,1746738637128,-2489.55757197,0.0001067,2]
[360307852,1746738637138,-2489.55757197,0.0001067,2]
[360307853,1746738637149,-500.0,0.0001067,2]
[360307854,1746738637159,-500.0,0.0001067,2]
[360307855,1746738637169,-500.0,0.0001067,2]
[360307856,1746738637184,-235.2248271,0.0001067,2]
[360307857,1746738637196,-2489.55757197,0.0001067,2]
[360307858,1746738637210,-2489.55757197,0.0001067,2]
[360307859,1746738637220,-2489.55757197,0.0001067,2]
[360307860,1746738637230,-2489.55757197,0.0001067,2]
[360307861,1746738637239,-2489.55757197,0.0001067,2]
[360307862,1746738637250,-2489.55757197,0.0001067,2]
[360307863,1746738637260,-2489.55757197,0.0001067,2]
[360307865,1746738637269,-2489.55757197,0.0001067,2]
[360307867,1746738637282,-2489.55757197,0.0001067,2]
[360307869,1746738637293,-2489.55757197,0.0001067,2]
[360307871,1746738637304,-2489.55757197,0.0001067,2]
[360307873,1746738637314,-2489.55757197,0.0001067,2]
[360307875,1746738637324,-2489.55757197,0.0001067,2]
[360307876,1746738637334,-2489.55757197,0.0001067,2]
[360307878,1746738637343,-2489.55757197,0.0001067,2]
[360307880,1746738637353,-2489.55757197,0.0001067,2]
[360307883,1746738637363,-500.0,0.0001067,2]
[360307885,1746738637372,-500.0,0.0001067,2]
[360307886,1746738637382,-500.0,0.0001067,2]
[360307888,1746738637391,-500.0,0.0001067,2]
[360307890,1746738637401,-276.33228991,0.0001067,2]
[360307892,1746738637411,-50000.0,0.00010671,2]
[360307894,1746738637420,-236.35276342,0.00010671,2]
[360307896,1746738637433,-500.0,0.00010671,2]
[360307898,1746738637443,-500.0,0.00010671,2]
[360307900,1746738637452,-500.0,0.00010671,2]
[360307902,1746738637462,-500.0,0.00010671,2]
[360307905,1746738637472,-500.0,0.00010671,2]
[360307907,1746738637482,-500.0,0.00010671,2]
[360307909,1746738637492,-318.63889081,0.00010671,2]
[360307911,1746738637501,-500.0,0.00010671,2]
[360307913,1746738637511,-442.25625876,0.00010671,2]
[360307915,1746738637520,-500.0,0.00010672,2]
[360307917,1746738637530,-152.0,0.00010698,2]
[360307919,1746738637540,-1000.0,0.000107,2]
[360307921,1746738637549,-151.0,0.00010715,2]
[360307923,1746738637559,-155.0,0.00010715,2]
[360307925,1746738637569,-151.0,0.00010715,2]
[360307927,1746738637578,-207.4,0.00010715,2]
[360307930,1746738637587,-151.0,0.00010715,2]
[360307932,1746738637597,-179.89467565,0.00010715,2]
[360307934,1746738637607,-370000.0,0.00010721,2]
[360307936,1746738637616,-5158.66074058,0.0001074,2]
[360307938,1746738637626,-230.45474967,0.00010773,2]
[360307940,1746738637636,-165.61349575,0.00010773,2]
[360307942,1746738637645,-500.0,0.00010773,2]
[360307943,1746738637655,-500.0,0.00010773,2]
[360307944,1746738637664,-500.0,0.00010773,2]
[360307946,1746738637676,-500.0,0.00010773,2]
[360307948,1746738637687,-500.0,0.00010773,2]
[360307950,1746738637696,-500.0,0.00010773,2]
[360307953,1746738637705,-500.0,0.00010773,2]
[360307955,1746738637716,-500.0,0.00010773,2]
[360307957,1746738637725,-500.0,0.00010773,2]
[360307959,1746738637735,-500.0,0.00010773,2]
[360307961,1746738637744,-500.0,0.00010773,2]
[360307963,1746738637753,-500.0,0.00010773,2]
[360307966,1746738637763,-500.0076644,0.00010773,2]
[360307968,1746738637772,-500.0,0.00010773,2]
[360307970,1746738637782,-500.0,0.00010773,2]
[360307972,1746738637791,-500.0,0.00010773,2]
[360307973,1746738637801,-500.0,0.00010773,2]
[360307975,1746738637811,-422.0031039,0.00010773,2]
[360307976,1746738637821,-500.0,0.00010773,2]
[360307978,1746738637830,-500.0,0.00010773,2]
[360307979,1746738637840,-500.0,0.00010773,2]
[360307981,1746738637850,-500.0,0.00010773,2]
[360307983,1746738637860,-500.0,0.00010773,2]
[360307985,1746738637870,-178.46637827,0.00010773,2]
[360307986,1746738637879,-500.0,0.00010773,2]
[360307988,1746738637888,-500.0,0.00010773,2]
[360307989,1746738637897,-446.14574839,0.00010773,2]
[360307991,1746738638059,-500.0,0.00010773,2]
[360307992,1746738638071,-500.0,0.00010773,2]
[360307993,1746738638081,-500.0,0.00010773,2]
[360307994,1746738638090,-500.0,0.00010773,2]
[360307995,1746738638100,-500.0,0.00010773,2]
[360307997,1746738638109,-500.0,0.00010773,2]
[360307998,1746738638120,-500.0,0.00010773,2]
[360307999,1746738638130,-500.0,0.00010773,2]
[360308000,1746738638139,-500.0,0.00010773,2]
[360308001,1746738638149,-500.0,0.00010773,2]
[360308002,1746738638159,-500.0,0.00010773,2]
[360308003,1746738638169,-250.0,0.00010798,2]
[360308004,1746738638181,-151.0,0.0001089,2]
[360308005,1746738638191,-2469.57910858,0.00010896,2]
[360308006,1746738638203,-190.40777086,0.00010904,2]
[360308007,1746738638213,-193.0,0.00010938,2]
[360308008,1746738638223,-500.0,0.00010946,2]
[360308009,1746738638232,-400.0,0.00010958,2]
[360308010,1746738638242,-500.0,0.00010958,2]
[360308011,1746738638252,-501.38374076,0.00010958,2]
[360308012,1746738638262,-400.0,0.00010958,2]
[360308013,1746738638271,-500.0,0.00010958,2]
[360308014,1746738638280,-400.0,0.00010958,2]
[360308015,1746738638291,-400.0,0.00010958,2]
[360308016,1746738638301,-400.0,0.00010958,2]
[360308017,1746738638311,-396.83649094,0.00010958,2]
[360308018,1746738638321,-400.0,0.00010958,2]
[360308019,1746738638331,-400.0,0.00010958,2]
[360308020,1746738638341,-400.0,0.00010958,2]
[360308021,1746738638351,-400.0,0.00010958,2]
[360308022,1746738638361,-477.94062877,0.00010958,2]
[360308023,1746738638370,-400.0,0.00010958,2]
[360308024,1746738638380,-400.0,0.00010958,2]
[360308025,1746738638390,-402.95757798,0.00010958,2]
[360308026,1746738638400,-400.0,0.00010958,2]
[360308027,1746738638409,-400.0,0.00010958,2]
[360308028,1746738638419,-400.0,0.00010958,2]
[360308029,1746738638430,-400.0,0.00010958,2]
[360308030,1746738638440,-1789.29,0.00010958,2]
[360308031,1746738638449,-1789.29,0.00010958,2]
[360308032,1746738638459,-400.0,0.00010958,2]
[360308033,1746738638468,-1789.29,0.00010958,2]
[360308034,1746738638477,-1789.29,0.00010958,2]
[360308035,1746738638486,-1789.29,0.00010958,2]
[360308036,1746738638496,-1789.29,0.00010958,2]
[360308037,1746738638505,-1789.29,0.00010958,2]
[360308038,1746738638514,-1789.29,0.00010958,2]
[360308039,1746738638523,-1789.29,0.00010958,2]
[360308040,1746738638533,-1789.29,0.00010958,2]
[360308041,1746738638542,-1789.29,0.00010958,2]
[360308042,1746738638551,-1789.29,0.00010958,2]
[360308043,1746738638560,-1789.29,0.00010958,2]
[360308044,1746738638570,-1789.29,0.00010958,2]
[360308045,1746738638579,-1789.29,0.00010958,2]